bitfinex/quotes_BTCUSD_20210402
["timestamp","ask_amount","ask_price","bid_price","bid_amount"]
[1617383508912,1.33202663,59138.0,59137.0,5.3418648]
[1617383509119,1.25317574,59138.0,59137.0,6.3153428]
[1617383509515,1.25317574,59138.0,59137.0,6.4753428]
[1617383511542,1.25317574,59138.0,59137.0,6.3103428]
[1617383512138,1.25317574,59138.0,59137.0,6.4703428]
[1617383512744,1.25317574,59138.0,59137.0,2.3953428]
[1617383512942,1.25317574,59138.0,59137.0,0.9668228]
[1617383513543,1.25317574,59138.0,59137.0,1.0668228]
[1617383513965,1.25317574,59138.0,59137.0,1.6440328]
[1617383514162,1.25317574,59138.0,59137.0,4.3240328]
[1617383515163,1.24817574,59138.0,59137.0,5.3240328]
[1617383515765,1.24817574,59138.0,59137.0,4.3240328]
[1617383515965,1.24817574,59138.0,59137.0,5.0540328]
[1617383516169,1.24817574,59138.0,59137.0,4.3240328]
[1617383516593,1.24817574,59138.0,59137.0,1.6440328]
[1617383516991,1.24817574,59138.0,59137.0,3.3240328]
[1617383517591,1.24817574,59138.0,59137.0,3.4850328]
[1617383518070,1.24817574,59138.0,59137.0,4.8150328]
[1617383518267,1.24817574,59138.0,59137.0,3.4850328]
[1617383518671,1.24817574,59138.0,59137.0,3.5362226]
[1617383518870,1.24817574,59138.0,59137.0,3.4850328]
[1617383519270,1.24317574,59138.0,59137.0,5.4850328]
[1617383519470,1.24317574,59138.0,59137.0,6.4850328]
[1617383520071,1.24317574,59138.0,59137.0,5.7350328]
[1617383520274,1.24317574,59138.0,59137.0,5.4850328]
[1617383520674,1.24317574,59138.0,59137.0,6.4850328]
[1617383521076,1.24317574,59138.0,59137.0,6.9750328]
[1617383521279,1.24317574,59138.0,59137.0,7.4750328]
[1617383521678,1.24317574,59138.0,59137.0,7.7750328]
[1617383521878,1.24223878,59138.0,59137.0,7.7750328]
[1617383522076,1.24184247,59138.0,59137.0,7.7750328]
[1617383522276,1.24184247,59138.0,59137.0,8.62019804]
[1617383522474,1.24184247,59138.0,59137.0,9.0121164]
[1617383522673,1.24184247,59138.0,59137.0,8.62019804]
[1617383523074,1.24090551,59138.0,59137.0,8.62019804]
[1617383523475,1.20191986,59138.0,59137.0,9.12019804]
[1617383523676,1.19292779,59138.0,59137.0,9.23943659]
[1617383523876,1.15026792,59138.0,59137.0,8.23943659]
[1617383524077,0.9654343,59138.0,59137.0,9.23943659]
[1617383524280,0.9654343,59138.0,59137.0,7.70443659]
[1617383524482,0.9654343,59138.0,59137.0,8.70443659]
[1617383524483,0.94131907,59138.0,59137.0,8.70443659]
[1617383524680,0.93131907,59138.0,59137.0,7.86443659]
[1617383525077,0.93131907,59138.0,59137.0,7.36443659]
[1617383525474,0.93131907,59138.0,59137.0,6.9000328]
[1617383525676,0.93131907,59138.0,59137.0,7.4400328]
[1617383526477,0.93131907,59138.0,59137.0,8.55927135]
[1617383527086,0.93131907,59138.0,59137.0,9.05927135]
[1617383527286,0.92456029,59138.0,59137.0,9.05927135]
[1617383528498,0.84862387,59138.0,59137.0,9.28519804]
[1617383528693,0.51074687,59138.0,59137.0,9.6771164]
[1617383528893,0.17288687,59138.0,59137.0,9.28519804]
[1617383529089,0.16613088,59138.0,59137.0,9.0400328]
[1617383529293,0.01478,59144.0,59138.0,3.68]
[1617383529494,0.01478,59144.0,59143.0,3.04474516]
[1617383529722,0.01478,59144.0,59143.0,5.93585706]
[1617383529920,0.01478,59144.0,59143.0,7.91585706]
[1617383530125,0.01478,59144.0,59143.0,7.88343786]
[1617383530317,0.01478,59144.0,59143.0,6.88343786]
[1617383530518,0.01478,59144.0,59143.0,7.88343786]
[1617383531318,0.00978,59144.0,59143.0,8.38343786]
[1617383531520,0.00978,59144.0,59143.0,8.48343786]
[1617383531721,0.9485,59166.0,59144.0,3.02]
[1617383531922,0.0048,59165.0,59161.0,0.07]
[1617383532122,0.9485,59166.0,59163.0,0.253395]
[1617383532348,0.01966191,59176.0,59164.0,0.652673]
[1617383532548,0.0066,59173.0,59165.0,0.1]
[1617383532748,0.68255,59173.0,59165.0,0.1]
[1617383532946,0.67755,59173.0,59165.0,0.1]
[1617383533197,0.00374964,59172.0,59165.0,0.1]
[1617383533396,0.67969964,59172.0,59166.0,0.132661]
[1617383533593,0.67969964,59172.0,59166.0,0.447661]
[1617383533804,0.67969964,59172.0,59167.0,0.335]
[1617383533997,0.50969964,59172.0,59168.0,0.386038]
[1617383534196,0.50969964,59172.0,59168.0,0.436038]
[1617383534397,0.49969964,59172.0,59168.0,0.436038]
[1617383534597,0.49969964,59172.0,59169.0,0.27]
[1617383534793,0.49969964,59172.0,59170.0,0.13265]
[1617383535004,0.4994411,59172.0,59170.0,0.13265]
[1617383535205,0.00020158,59171.0,59170.0,0.18265]
[1617383535819,0.49964268,59171.0,59170.0,2.40265]
[1617383536011,0.49964268,59171.0,59170.0,3.99765]
[1617383536418,0.49964268,59171.0,59170.0,4.32765]
[1617383536609,0.49964268,59171.0,59170.0,5.82765]
[1617383536610,0.49464268,59171.0,59170.0,5.82765]
[1617383536810,0.49464268,59171.0,59170.0,6.740973]
[1617383537009,0.49464268,59171.0,59170.0,7.28457573]
[1617383537407,0.49464268,59171.0,59170.0,7.38457573]
[1617383537620,0.46964268,59171.0,59170.0,7.64957573]
[1617383538017,0.46964268,59171.0,59170.0,8.14957573]
[1617383538217,0.41837187,59171.0,59170.0,7.85894289]
[1617383538419,0.41583187,59171.0,59170.0,8.60894289]
[1617383539019,0.05529387,59171.0,59170.0,8.60894289]
[1617383539219,0.02714114,59171.0,59170.0,10.67391721]
[1617383539420,0.04,59189.0,59171.0,4.68]
[1617383539625,0.04,59189.0,59187.0,0.03]
[1617383539825,0.04,59189.0,59188.0,2.932589]
[1617383540024,0.04,59189.0,59188.0,2.24589632]
[1617383540244,0.04,59189.0,59188.0,0.820848]
[1617383540442,0.04,59189.0,59188.0,0.132589]
[1617383541653,0.04,59189.0,59176.0,0.167]
[1617383541654,0.31141596,59189.0,59176.0,0.167]
[1617383541852,0.31141596,59189.0,59178.0,0.15]
[1617383541853,0.0042,59187.0,59178.0,0.15]
[1617383542239,0.198,59180.0,59168.0,0.4552]
[1617383542445,0.0044,59177.0,59168.0,0.4552]
[1617383542641,0.0044,59177.0,59169.0,0.132649]
[1617383542867,0.68021,59177.0,59170.0,0.3]
[1617383543068,0.67581,59177.0,59171.0,0.132645]
[1617383543264,0.67581,59177.0,59172.0,0.3]
[1617383543865,0.67581,59177.0,59173.0,0.132639]
[1617383544868,0.67581,59177.0,59169.0,0.463383]
[1617383545067,0.67581,59177.0,59170.0,0.132646]
[1617383545692,0.67081,59177.0,59171.0,0.253371]
[1617383545893,0.67081,59177.0,59174.0,0.04]
[1617383546091,0.67081,59177.0,59175.0,0.04]
[1617383546293,0.67081,59177.0,59176.0,1.99263]
[1617383546493,0.67081,59177.0,59176.0,2.35763]
[1617383546696,0.67081,59177.0,59176.0,2.44763]
[1617383546893,0.67081,59177.0,59176.0,2.40763]
[1617383547091,0.67081,59177.0,59176.0,0.54763]
[1617383547292,0.67081,59177.0,59176.0,0.18263]
[1617383547692,0.67081,59177.0,59175.0,0.35]
[1617383548170,0.67081,59177.0,59175.0,0.303358]
[1617383548349,0.66581,59177.0,59175.0,0.303358]
[1617383549150,0.66581,59177.0,59169.0,0.25338]
[1617383549348,0.66581,59177.0,59170.0,0.277644]
[1617383549952,0.002,59182.0,59172.0,0.132636]
[1617383550152,0.05,59189.0,59173.0,0.0044]
[1617383550153,0.002,59187.0,59173.0,0.0044]
[1617383550348,0.002,59187.0,59174.0,0.132631]
[1617383550549,0.67782,59187.0,59174.0,0.132631]
[1617383550750,0.67782,59187.0,59175.0,0.475]
[1617383550956,0.67582,59187.0,59176.0,0.8]
[1617383551151,0.67582,59187.0,59179.0,0.04]
[1617383551349,0.67582,59187.0,59179.0,0.14]
[1617383551550,0.65082,59187.0,59179.0,0.14]
[1617383551750,0.65082,59187.0,59180.0,0.03]
[1617383551952,0.65082,59187.0,59179.0,0.1]
[1617383552154,0.65082,59187.0,59182.0,0.303334]
[1617383554176,0.387412,59186.0,59182.0,0.05]
[1617383554374,1.038232,59186.0,59179.0,0.1]
[1617383554573,0.65082,59186.0,59179.0,0.1]
[1617383554773,1.43318918,59186.0,59179.0,0.1]
[1617383555378,0.61065044,59185.0,59179.0,0.1]
[1617383555582,0.002,59183.0,59168.0,0.03]
[1617383555991,0.36,59182.0,59165.0,0.07]
[1617383556188,0.002,59178.0,59164.0,0.1645]
[1617383556386,0.65256758,59178.0,59160.0,0.03]
[1617383556584,0.65256758,59178.0,59164.0,0.004]
[1617383556789,0.65256758,59178.0,59169.0,0.25339]
[1617383556790,0.65056758,59178.0,59169.0,0.25339]
[1617383557586,0.65056758,59178.0,59169.0,0.30339]
[1617383558631,0.65056758,59178.0,59171.0,0.04]
[1617383558825,0.65056758,59178.0,59176.0,0.04]
[1617383559019,0.65056758,59178.0,59177.0,3.812629]
[1617383559216,0.65056758,59178.0,59177.0,3.852629]
[1617383559419,0.65056758,59178.0,59177.0,4.917629]
[1617383559621,0.65056758,59178.0,59177.0,5.297629]
[1617383560618,0.65056758,59178.0,59177.0,5.612629]
[1617383560820,0.65056758,59178.0,59177.0,5.865919]
[1617383562042,0.64556758,59178.0,59177.0,5.865919]
[1617383562241,0.64556758,59178.0,59177.0,6.105919]
[1617383562640,0.64556758,59178.0,59177.0,5.865919]
[1617383563044,0.64556758,59178.0,59177.0,5.695919]
[1617383563287,0.64556758,59178.0,59177.0,5.855919]
[1617383563489,0.64556758,59178.0,59177.0,6.496969]
[1617383563689,0.64556758,59178.0,59177.0,6.641189]
[1617383566689,0.64556758,59178.0,59177.0,2.961189]
[1617383566888,0.64556758,59178.0,59177.0,2.415919]
[1617383567093,0.64556758,59178.0,59177.0,1.440919]
[1617383567291,0.64556758,59178.0,59177.0,1.200919]
[1617383567490,0.64556758,59178.0,59177.0,0.960919]
[1617383567689,0.64556758,59178.0,59177.0,1.085919]
[1617383568092,0.64556758,59178.0,59177.0,1.238919]
[1617383568491,0.64556758,59178.0,59177.0,2.738919]
[1617383568892,0.64556758,59178.0,59177.0,1.238919]
[1617383569324,0.64556758,59178.0,59177.0,1.035919]
[1617383569523,0.84791119,59178.0,59177.0,0.665919]
[1617383569721,0.64556758,59178.0,59177.0,0.385919]
[1617383569925,0.64556758,59178.0,59176.0,0.337722]
[1617383570724,0.64556758,59178.0,59171.0,0.253368]
[1617383571521,0.66526472,59178.0,59171.0,0.253368]
[1617383571939,0.135,59177.0,59171.0,0.253368]
[1617383572342,0.64556758,59177.0,59171.0,0.253368]
[1617383572742,0.64556758,59177.0,59173.0,0.1]
[1617383573142,0.59556758,59177.0,59173.0,0.1]
[1617383573548,0.59556758,59177.0,59176.0,0.04]
[1617383573748,0.59556758,59177.0,59176.0,4.40686755]
[1617383573950,0.59556758,59177.0,59176.0,4.70686755]
[1617383574144,0.59556758,59177.0,59176.0,4.73686755]
[1617383574561,0.59556758,59177.0,59176.0,4.617629]
[1617383574963,0.59556758,59177.0,59176.0,1.087629]
[1617383575361,0.59556758,59177.0,59176.0,0.95686755]
[1617383576168,0.59556758,59177.0,59176.0,0.837629]
[1617383576359,0.59556758,59177.0,59176.0,2.537629]
[1617383576561,0.59556758,59177.0,59176.0,0.837629]
[1617383577390,0.59056758,59177.0,59176.0,0.837629]
[1617383578443,0.59056758,59177.0,59176.0,0.182629]
[1617383583039,0.59056758,59177.0,59176.0,0.222629]
[1617383583240,0.59056758,59177.0,59176.0,0.182629]
[1617383583439,0.59056758,59177.0,59176.0,0.222629]
[1617383583643,0.59056758,59177.0,59176.0,0.377629]
[1617383584046,0.59056758,59177.0,59176.0,0.52686755]
[1617383584247,0.59056758,59177.0,59176.0,2.08686755]
[1617383584645,0.59056758,59177.0,59176.0,2.33686755]
[1617383584875,0.59056758,59177.0,59176.0,2.217629]
[1617383585271,0.59056758,59177.0,59176.0,0.657629]
[1617383585470,0.59056758,59177.0,59176.0,0.407629]
[1617383585672,0.59056758,59177.0,59176.0,0.52686755]
[1617383586277,0.59056758,59177.0,59176.0,1.56686755]
[1617383586480,0.59056758,59177.0,59176.0,2.28186755]
[1617383587279,0.59056758,59177.0,59176.0,4.26186755]
[1617383587495,0.39056758,59177.0,59176.0,4.92186755]
[1617383587897,0.39056758,59177.0,59176.0,4.26186755]
[1617383588095,0.39056758,59177.0,59176.0,2.28186755]
[1617383588400,0.39056758,59177.0,59176.0,1.997629]
[1617383588997,0.39056758,59177.0,59176.0,2.11686755]
[1617383589195,0.39056758,59177.0,59176.0,3.27686755]
[1617383589596,0.39056758,59177.0,59176.0,3.44086755]
[1617383590013,0.39056758,59177.0,59176.0,1.121629]
[1617383590213,0.39056758,59177.0,59176.0,0.871629]
[1617383590612,0.39056758,59177.0,59176.0,1.371629]
[1617383591215,0.39056758,59177.0,59176.0,2.471629]
[1617383591423,0.39056758,59177.0,59176.0,2.721629]
[1617383591616,0.39056758,59177.0,59176.0,1.621629]
[1617383591816,0.39056758,59177.0,59176.0,1.457629]
[1617383592641,0.39056758,59177.0,59176.0,1.207629]
[1617383593478,0.39056758,59177.0,59176.0,1.237629]
[1617383593677,0.39056758,59177.0,59176.0,1.117629]
[1617383593882,0.39056758,59177.0,59176.0,0.857629]
[1617383594082,0.39056758,59177.0,59176.0,0.817629]
[1617383594688,0.39056758,59177.0,59176.0,0.162629]
[1617383595485,0.39056758,59177.0,59176.0,0.03]
[1617383595688,0.39056758,59177.0,59176.0,0.08]
[1617383595888,0.39056758,59177.0,59176.0,0.03]
[1617383597286,0.39056758,59177.0,59176.0,0.13]
[1617383597488,0.39056758,59177.0,59176.0,0.08]
[1617383597689,0.39056758,59177.0,59174.0,0.303364]
[1617383597690,0.39056758,59177.0,59174.0,0.033364]
[1617383598303,0.39056758,59177.0,59173.0,0.337783]
[1617383598505,0.39056758,59177.0,59168.0,0.25338]
[1617383599102,0.39056758,59177.0,59168.0,0.29338]
[1617383599303,0.39056758,59177.0,59169.0,0.04]
[1617383599703,0.39056758,59177.0,59170.0,0.03]
[1617383600306,0.39056758,59177.0,59174.0,0.1]
[1617383601932,0.39056758,59177.0,59174.0,0.095]
[1617383603165,0.22216882,59176.0,59166.0,0.03]
[1617383603364,0.175,59175.0,59166.0,0.03]
[1617383603564,0.56556758,59175.0,59166.0,0.03]
[1617383604563,0.56871836,59175.0,59166.0,0.03]
[1617383604761,0.24,59174.0,59166.0,0.03]
[1617383604966,0.63056758,59174.0,59166.0,0.03]
[1617383605158,0.63056758,59174.0,59166.0,0.14923855]
[1617383605358,0.39056758,59174.0,59166.0,0.14923855]
[1617383605559,0.39056758,59174.0,59166.0,0.03]
[1617383605981,0.39056758,59174.0,59167.0,0.11923855]
[1617383606382,0.39056758,59174.0,59167.0,0.16923855]
[1617383606782,0.39056758,59174.0,59167.0,0.15]
[1617383606984,0.39056758,59174.0,59167.0,0.1]
[1617383607381,0.39056758,59174.0,59166.0,0.08]
[1617383607580,0.39056758,59174.0,59166.0,0.03]
[1617383607982,0.39056758,59174.0,59167.0,0.11923855]
[1617383608180,0.39056758,59174.0,59167.0,0.16923855]
[1617383608442,0.39056758,59174.0,59166.0,0.17923855]
[1617383608635,0.39056758,59174.0,59166.0,0.08]
[1617383609239,0.39056758,59174.0,59166.0,0.03]
[1617383610240,0.39056758,59174.0,59167.0,0.132652]
[1617383610640,0.39056758,59174.0,59167.0,0.182652]
[1617383610840,0.39056758,59174.0,59167.0,0.282652]
[1617383612446,0.39056758,59174.0,59167.0,0.132652]
[1617383613042,0.39056758,59174.0,59168.0,0.135]
[1617383613244,0.39056758,59174.0,59166.0,0.5]
[1617383613445,0.70606758,59174.0,59167.0,0.132657]
[1617383613862,0.70606758,59174.0,59166.0,0.5]
[1617383615869,3.841,59167.0,59166.0,0.5]
[1617383616172,4.23156758,59167.0,59166.0,0.5]
[1617383617188,0.55156758,59167.0,59166.0,0.5]
[1617383617989,0.80503358,59167.0,59166.0,0.5]
[1617383618187,0.97003358,59167.0,59166.0,0.5]
[1617383618789,1.85003358,59167.0,59166.0,0.5]
[1617383619410,0.97003358,59167.0,59166.0,0.5]
[1617383620017,0.71656758,59167.0,59166.0,0.5]
[1617383620411,0.39056758,59167.0,59166.0,0.5]
[1617383621412,0.39056758,59167.0,59166.0,0.632664]
[1617383622844,0.39056758,59167.0,59166.0,0.624181]
[1617383624057,0.39056758,59167.0,59166.0,0.491517]
[1617383624264,0.59056758,59167.0,59166.0,0.491517]
[1617383624466,1.14197958,59167.0,59166.0,0.491517]
[1617383624865,4.82197958,59167.0,59166.0,0.491517]
[1617383625068,5.17667084,59167.0,59166.0,0.591517]
[1617383625473,5.17667084,59167.0,59166.0,0.491517]
[1617383625664,5.22667084,59167.0,59166.0,0.491517]
[1617383625865,5.28580183,59167.0,59166.0,0.113217]
[1617383626064,5.22667084,59167.0,59166.0,0.113217]
[1617383626263,5.32667084,59167.0,59166.0,0.113217]
[1617383626465,5.37667084,59167.0,59166.0,0.113217]
[1617383626665,5.61667084,59167.0,59166.0,0.113217]
[1617383627686,5.60167084,59167.0,59166.0,0.113217]
[1617383628088,5.90167084,59167.0,59166.0,0.113217]
[1617383628492,0.00303724,59165.0,59145.0,0.0675808]
[1617383628692,0.154,59155.0,59145.0,0.0675808]
[1617383628890,0.154,59155.0,59146.0,0.132724]
[1617383628891,0.02262386,59153.0,59146.0,0.132724]
[1617383629088,0.02262386,59153.0,59145.0,0.0675808]
[1617383629290,0.25355,59151.0,59145.0,0.0675808]
[1617383629511,1.28380884,59151.0,59145.0,0.0675808]
[1617383630111,0.00310534,59150.0,59145.0,0.0675808]
[1617383630312,0.71867292,59150.0,59145.0,0.0675808]
[1617383631112,0.71867292,59150.0,59135.0,0.14648686]
[1617383631316,3.092,59149.0,59136.0,0.1]
[1617383631512,3.82225884,59149.0,59136.0,0.1]
[1617383631715,0.2,59148.0,59136.0,0.1]
[1617383631911,0.59056758,59148.0,59136.0,0.1]
[1617383632331,0.59056758,59148.0,59135.0,0.20048686]
[1617383632733,0.59056758,59148.0,59135.0,1.054]
[1617383632933,0.59056758,59148.0,59137.0,0.1]
[1617383633336,0.39056758,59148.0,59135.0,0.054]
[1617383633535,0.39056758,59148.0,59136.0,1.0]
[1617383633933,0.39056758,59148.0,59136.0,0.08]
[1617383634133,0.39056758,59148.0,59139.0,0.132747]
[1617383634334,0.39056758,59148.0,59135.0,0.084]
[1617383634533,0.39056758,59148.0,59139.0,0.004]
[1617383635362,0.3936649,59148.0,59139.0,0.004]
[1617383635963,0.3936649,59148.0,59134.0,0.343525]
[1617383636362,0.3936649,59148.0,59134.0,0.293525]
[1617383636565,0.3936649,59148.0,59134.0,0.006]
[1617383636566,0.161,59135.0,59134.0,0.006]
[1617383636773,4.79268484,59135.0,59134.0,0.006]
[1617383636970,2.95,59134.0,59128.0,0.00022]
[1617383637171,3.84,59129.0,59128.0,0.00022]
[1617383637392,6.24267084,59129.0,59128.0,0.00022]
[1617383637588,6.58267084,59129.0,59128.0,0.00022]
[1617383637789,6.58267084,59129.0,59126.0,0.00022]
[1617383637790,6.88635484,59129.0,59126.0,0.00022]
[1617383637990,4.219412,59127.0,59126.0,0.00022]
[1617383638191,2.95,59126.0,59121.0,0.00022]
[1617383638403,4.067412,59124.0,59121.0,0.00022]
[1617383638599,4.99710326,59124.0,59121.0,0.00022]
[1617383638796,5.64267084,59124.0,59121.0,0.00022]
[1617383638996,6.62767084,59124.0,59121.0,0.00022]
[1617383639508,4.01969126,59123.0,59120.0,0.25574063]
[1617383639704,3.68,59120.0,59109.0,0.00088]
[1617383639944,4.22241,59117.0,59109.0,0.00088]
[1617383640141,5.01297758,59117.0,59109.0,0.00088]
[1617383640542,7.07797758,59117.0,59116.0,0.00044]
[1617383640741,7.71766884,59117.0,59116.0,0.00044]
[1617383640947,7.71766884,59117.0,59113.0,0.00022]
[1617383640948,0.33969126,59115.0,59113.0,0.00022]
[1617383641147,6.18810126,59114.0,59113.0,0.00022]
[1617383641344,6.57866884,59114.0,59113.0,0.00022]
[1617383641945,6.83244684,59114.0,59113.0,0.00022]
[1617383642147,6.73244684,59114.0,59113.0,0.00022]
[1617383642550,2.75244684,59114.0,59113.0,0.00022]
[1617383642753,1.61144684,59114.0,59113.0,0.00022]
[1617383642950,0.77797758,59114.0,59113.0,0.00022]
[1617383643551,2.84797758,59114.0,59113.0,0.00022]
[1617383643753,0.77797758,59114.0,59113.0,0.00022]
[1617383643946,1.30766884,59114.0,59113.0,0.00022]
[1617383644550,5.41066884,59114.0,59113.0,0.00022]
[1617383644754,1.77066884,59114.0,59113.0,0.00022]
[1617383644946,1.84766884,59114.0,59113.0,0.00022]
[1617383645164,1.54766884,59114.0,59113.0,0.00022]
[1617383645366,1.56138784,59114.0,59113.0,0.00022]
[1617383645964,1.80138784,59114.0,59113.0,0.00022]
[1617383646166,1.80696979,59114.0,59113.0,0.00022]
[1617383646371,1.56696979,59114.0,59113.0,0.00022]
[1617383646765,1.31325079,59114.0,59113.0,0.00022]
[1617383647795,0.97355953,59114.0,59113.0,0.00022]
[1617383647995,0.92584079,59114.0,59113.0,0.00022]
[1617383648198,0.92584079,59114.0,59112.0,0.27588]
[1617383648404,0.195,59113.0,59112.0,0.27588]
[1617383648600,0.39056758,59113.0,59112.0,4.23786086]
[1617383648798,0.39056758,59113.0,59112.0,4.37571086]
[1617383648997,0.39056758,59113.0,59112.0,4.69355669]
[1617383649401,0.39056758,59113.0,59112.0,5.13355669]
[1617383649595,0.39056758,59113.0,59112.0,0.58157583]
[1617383649799,0.39056758,59113.0,59112.0,0.30613583]
[1617383650005,0.39056758,59113.0,59112.0,0.16828583]
[1617383650205,0.77797758,59113.0,59112.0,0.00128583]
[1617383650423,0.93697758,59113.0,59112.0,0.00128583]
[1617383650619,0.98297758,59113.0,59112.0,0.00128583]
[1617383651225,0.59556758,59113.0,59112.0,0.00128583]
[1617383652123,1.28297758,59113.0,59112.0,0.00128583]
[1617383652525,1.90297758,59113.0,59112.0,0.00128583]
[1617383653138,1.28297758,59113.0,59112.0,0.00128583]
[1617383653442,2.47697758,59113.0,59112.0,0.00128583]
[1617383653632,1.44697758,59113.0,59112.0,0.00128583]
[1617383654434,0.98297758,59113.0,59112.0,0.00128583]
[1617383655034,0.59556758,59113.0,59112.0,0.00128583]
[1617383655894,0.98297758,59113.0,59112.0,0.00128583]
[1617383656093,0.98297758,59113.0,59112.0,0.00038583]
[1617383656698,0.59556758,59113.0,59112.0,0.00038583]
[1617383656895,0.98297758,59113.0,59112.0,0.00038583]
[1617383658500,0.59556758,59113.0,59111.0,0.08582583]
[1617383658700,0.145,59112.0,59111.0,0.08582583]
[1617383658902,0.39056758,59112.0,59111.0,0.08582583]
[1617383659699,0.77821752,59112.0,59111.0,0.08582583]
[1617383660102,0.39080752,59112.0,59111.0,0.08582583]
[1617383660306,0.77821752,59112.0,59111.0,0.08582583]
[1617383662322,4.83221752,59112.0,59111.0,0.08582583]
[1617383662915,1.15221752,59112.0,59111.0,0.08582583]
[1617383663319,2.44221752,59112.0,59111.0,0.08582583]
[1617383663547,1.38952962,59112.0,59111.0,0.08582583]
[1617383663747,1.15221752,59112.0,59111.0,0.08582583]
[1617383664346,2.61221752,59112.0,59111.0,0.08582583]
[1617383664746,2.71221752,59112.0,59111.0,0.08582583]
[1617383664947,1.83054208,59112.0,59111.0,0.08582583]
[1617383665349,4.08054208,59112.0,59111.0,0.08582583]
[1617383665547,1.83054208,59112.0,59111.0,0.08582583]
[1617383666371,3.83054208,59112.0,59111.0,0.08582583]
[1617383666571,4.33054208,59112.0,59111.0,0.08582583]
[1617383666774,4.44004537,59112.0,59111.0,0.08582583]
[1617383666973,3.68,59111.0,59110.0,0.00066]
[1617383667174,3.68,59111.0,59109.0,0.00044]
[1617383667175,3.68,59110.0,59109.0,0.00044]
[1617383667376,3.68,59110.0,59108.0,0.00084]
[1617383667377,4.66,59109.0,59108.0,0.00084]
[1617383667569,8.50428856,59109.0,59108.0,0.00084]
[1617383667772,8.95428856,59109.0,59108.0,0.00084]
[1617383668469,9.04358904,59109.0,59108.0,0.00084]
[1617383669100,8.65865641,59109.0,59108.0,0.00084]
[1617383669704,4.73,59108.0,59107.0,0.00022]
[1617383669898,8.04852184,59108.0,59107.0,0.00022]
[1617383670097,8.55618246,59108.0,59107.0,0.00022]
[1617383670299,8.64548294,59108.0,59107.0,0.00022]
[1617383670498,8.45548294,59108.0,59107.0,0.00022]
[1617383670699,8.06548294,59108.0,59107.0,0.00022]
[1617383670900,7.49948294,59108.0,59107.0,0.00022]
[1617383671301,7.41018246,59108.0,59107.0,0.00022]
[1617383671723,6.45836513,59108.0,59107.0,0.00022]
[1617383671925,6.03650184,59108.0,59107.0,0.00022]
[1617383672523,6.44752184,59108.0,59107.0,0.00022]
[1617383672925,6.44752184,59108.0,59101.0,0.00066]
[1617383673126,0.46658026,59105.0,59101.0,0.00028]
[1617383673324,0.72710126,59104.0,59101.0,0.00028]
[1617383673522,2.01210126,59104.0,59101.0,0.00028]
[1617383673725,4.06741,59102.0,59101.0,0.00028]
[1617383673926,5.78266884,59102.0,59101.0,0.00028]
[1617383674546,2.10266884,59102.0,59101.0,0.00028]
[1617383674745,1.11766884,59102.0,59101.0,0.00028]
[1617383674949,3.35475246,59102.0,59101.0,0.00028]
[1617383675348,4.61475246,59102.0,59101.0,0.00028]
[1617383675550,5.49475246,59102.0,59101.0,0.00028]
[1617383675749,4.23475246,59102.0,59101.0,0.00028]
[1617383677170,4.91475246,59102.0,59101.0,0.00028]
[1617383677371,4.24031216,59102.0,59101.0,0.00028]
[1617383677574,2.00322854,59102.0,59101.0,0.00028]
[1617383677972,1.12322854,59102.0,59101.0,0.00028]
[1617383680402,1.42822854,59102.0,59101.0,0.00028]
[1617383681002,1.42846133,59102.0,59101.0,0.00028]
[1617383681603,2.07518133,59102.0,59101.0,0.40028]
[1617383682229,4.56518133,59102.0,59101.0,0.40028]
[1617383682426,2.17518133,59102.0,59101.0,0.40028]
[1617383682627,2.31518133,59102.0,59101.0,0.40028]
[1617383683029,2.07518133,59102.0,59101.0,0.40028]
[1617383683505,2.37518133,59102.0,59101.0,0.40028]
[1617383684098,2.69518133,59102.0,59101.0,0.40028]
[1617383684696,2.37518133,59102.0,59101.0,0.40028]
[1617383685498,2.31374133,59102.0,59101.0,0.40028]
[1617383685895,2.18600133,59102.0,59101.0,0.40028]
[1617383686297,5.00600133,59102.0,59101.0,0.39528]
[1617383686501,2.63600133,59102.0,59101.0,0.39528]
[1617383687099,3.86600133,59102.0,59101.0,0.39528]
[1617383687300,4.05814133,59102.0,59101.0,0.39528]
[1617383687700,2.37814133,59102.0,59101.0,0.39528]
[1617383687901,2.07814133,59102.0,59101.0,0.39528]
[1617383688105,1.62060133,59102.0,59101.0,0.39528]
[1617383688501,1.42846133,59102.0,59101.0,0.39528]
[1617383689905,2.22846133,59102.0,59101.0,0.39528]
[1617383690104,4.82422133,59102.0,59101.0,0.39528]
[1617383690303,4.87422133,59102.0,59101.0,0.39528]
[1617383690506,4.90622133,59102.0,59101.0,0.39528]
[1617383690707,4.66622133,59102.0,59101.0,0.39528]
[1617383691312,5.42122133,59102.0,59101.0,0.39528]
[1617383691906,5.54287183,59102.0,59101.0,0.39528]
[1617383692106,6.65287183,59102.0,59101.0,0.39528]
[1617383692311,6.53122133,59102.0,59101.0,0.39528]
[1617383692725,5.25622133,59102.0,59101.0,0.39528]
[1617383693125,6.34622133,59102.0,59101.0,0.39528]
[1617383693727,6.51122133,59102.0,59101.0,0.39528]
[1617383693924,5.35122133,59102.0,59101.0,0.39528]
[1617383694124,2.35122133,59102.0,59101.0,0.39528]
[1617383694328,1.76846133,59102.0,59101.0,0.39528]
[1617383694527,1.42846133,59102.0,59101.0,0.39528]
[1617383695153,1.78060193,59102.0,59101.0,0.39528]
[1617383695353,2.08060193,59102.0,59101.0,0.39528]
[1617383695749,2.25892193,59102.0,59101.0,0.39528]
[1617383695954,3.42892193,59102.0,59101.0,0.39528]
[1617383696151,2.25892193,59102.0,59101.0,0.39528]
[1617383696952,4.70892193,59102.0,59101.0,0.39528]
[1617383697354,2.59892193,59102.0,59101.0,0.39528]
[1617383697555,2.25892193,59102.0,59101.0,0.39528]
[1617383697979,4.85892193,59102.0,59101.0,0.39528]
[1617383698632,2.40292193,59102.0,59101.0,0.39528]
[1617383700033,6.08292193,59102.0,59101.0,0.39528]
[1617383700449,6.18292193,59102.0,59101.0,0.37592837]
[1617383700647,6.18292193,59102.0,59094.0,0.00088]
[1617383700858,5.50969126,59101.0,59082.0,0.2490248]
[1617383701052,0.25384,59092.0,59082.0,0.2490248]